fUSD/lending_fUSD_20240826
["ID","MTS","AMOUNT","RATE_DAILY","PERIOD"]
[336039486,1724676659618,-1098.74,0.00010997,2]
[336039487,1724676659627,-500.0,0.00010997,2]
[336039488,1724676659637,-1098.74,0.00010997,2]
[336039489,1724676659646,-1098.74,0.00010997,2]
[336039490,1724676659656,-1098.74,0.00010997,2]
[336039491,1724676659665,-1098.74,0.00010997,2]
[336039492,1724676659675,-174.27415062,0.00010997,2]
[336039493,1724676659689,-924.46584938,0.00010997,2]
[336039494,1724676659698,-914.31415062,0.00010997,2]
[336039495,1724676659709,-184.42584938,0.00010997,2]
[336039496,1724676659718,-1535.57288907,0.00010997,2]
[336039497,1724676659730,-824.13711093,0.00010997,2]
[336039498,1724676659739,-2359.71,0.00010997,2]
[336039499,1724676659748,-2359.71,0.00010997,2]
[336039500,1724676659757,-2359.71,0.00010997,2]
[336039501,1724676659767,-2359.71,0.00010997,2]
[336039502,1724676659776,-2206.16635678,0.00010997,2]
[336039503,1724676659790,-153.54364322,0.00010997,2]
[336039504,1724676659799,-167.12942385,0.00010997,2]
[336039505,1724676659810,-661.99824999,0.00010997,2]
[336039506,1724676660254,-1530.58232616,0.00010997,2]
[336039507,1724676660264,-61.61767384,0.00010997,2]
[336039508,1724676660275,-1113.91876055,0.00010997,2]
[336039509,1724676660287,-1184.17356561,0.00010997,2]
[336039510,1724676660296,-503.52,0.00010997,2]
[336039511,1724676660306,-2359.71,0.00010997,2]
[336039512,1724676660318,-952.21686781,0.00010997,2]
[336039513,1724676660330,-805.58226419,0.00010997,2]
[336039514,1724676660342,-601.910868,0.00010997,2]
[336039515,1724676660353,-62.014132,0.00010997,2]
[336039516,1724676660364,-441.505868,0.00010997,2]
[336039517,1724676660374,-2359.71,0.00010997,2]
[336039518,1724676660383,-503.52,0.00010997,2]
[336039519,1724676660391,-667.59794561,0.00010997,2]
[336039520,1724676660403,-1692.11205439,0.00010997,2]
[336039521,1724676660413,-503.52,0.00010997,2]
[336039522,1724676660422,-2359.71,0.00010997,2]
[336039523,1724676660431,-503.52,0.00010997,2]
[336039524,1724676660440,-503.52,0.00010997,2]
[336039525,1724676660449,-503.52,0.00010997,2]
[336039526,1724676660458,-503.52,0.00010997,2]
[336039527,1724676660468,-503.52,0.00010997,2]
[336039528,1724676660478,-503.52,0.00010997,2]
[336039529,1724676660490,-503.52,0.00010997,2]
[336039530,1724676660499,-503.52,0.00010997,2]
[336039531,1724676660508,-503.52,0.00010997,2]
[336039532,1724676660517,-500.0,0.00010997,2]
[336039533,1724676660526,-500.0,0.00010997,2]
[336039534,1724676660536,-304.95711928,0.00010997,2]
[336039535,1724676660549,-195.04288072,0.00010997,2]
[336039536,1724676660558,-500.0,0.00010997,2]
[336039537,1724676660567,-474.6623337,0.00010997,2]
[336039538,1724676660576,-553.04,0.00010997,2]
[336039539,1724676660587,-553.04,0.00010997,2]
[336039540,1724676660596,-553.04,0.00010997,2]
[336039541,1724676660605,-553.04,0.00010997,2]
[336039542,1724676660615,-507.14212445,0.00010997,2]
[336039543,1724676660628,-45.89787555,0.00010997,2]
[336039544,1724676660638,-553.04,0.00010997,2]
[336039545,1724676660648,-76.81862531,0.00010997,2]
[336039546,1724676660659,-476.22137469,0.00010997,2]
[336039547,1724676660669,-553.04,0.00010997,2]
[336039548,1724676660678,-239.73862531,0.00010997,2]
[336039549,1724676660690,-313.30137469,0.00010997,2]
[336039550,1724676660699,-553.04,0.00010997,2]
[336039551,1724676660709,-553.04,0.00010997,2]
[336039552,1724676660719,-689.36,0.00010997,2]
[336039553,1724676660729,-553.04,0.00010997,2]
[336039554,1724676660740,-553.04,0.00010997,2]
[336039555,1724676660749,-689.36,0.00010997,2]
[336039556,1724676660759,-689.36,0.00010997,2]
[336039557,1724676660768,-689.36,0.00010997,2]
[336039558,1724676660777,-689.36,0.00010997,2]
[336039559,1724676660786,-689.36,0.00010997,2]
[336039560,1724676660796,-689.36,0.00010997,2]
[336039561,1724676660805,-689.36,0.00010997,2]
[336039562,1724676660814,-689.36,0.00010997,2]
[336039563,1724676660823,-689.36,0.00010997,2]
[336039564,1724676660833,-689.36,0.00010997,2]
[336039565,1724676660842,-55.91390181,0.00010997,2]
[336039566,1724676660856,-444.08609819,0.00010997,2]
[336039567,1724676660865,-689.36,0.00010997,2]
[336039568,1724676660875,-500.0,0.00010997,2]
[336039569,1724676660889,-649.9760841,0.00010997,2]
[336039570,1724676660901,-39.3839159,0.00010997,2]
[336039571,1724676660911,-398.8339451,0.00010997,2]
[336039572,1724676660922,-243.65296721,0.00010997,2]
[336039573,1724676660933,-314.17927289,0.00010997,2]
[336039574,1724676660945,-185.82072711,0.00010997,2]
[336039575,1724676660954,-499.2958998,0.00010997,2]
[336039576,1724676660967,-0.7041002,0.00010997,2]
[336039577,1724676660977,-500.0,0.00010997,2]
[336039578,1724676660988,-500.0,0.00010997,2]
[336039579,1724676660998,-500.0,0.00010997,2]
[336039580,1724676661007,-500.0,0.00010997,2]
[336039581,1724676661016,-500.0,0.00010997,2]
[336039582,1724676661026,-500.0,0.00010997,2]
[336039583,1724676661036,-500.0,0.00010997,2]
[336039584,1724676661046,-500.0,0.00010997,2]
[336039585,1724676661055,-500.0,0.00010997,2]
[336039586,1724676661064,-500.0,0.00010997,2]
[336039587,1724676661074,-500.0,0.00010997,2]
[336039588,1724676661083,-500.0,0.00010997,2]
[336039589,1724676661093,-448.45438109,0.00010997,2]
[336039590,1724676661102,-500.0,0.00010997,2]
[336039591,1724676661111,-500.0,0.00010997,2]
[336039592,1724676661121,-144.29684685,0.00010997,2]
[336039593,1724676661135,-355.70315315,0.00010997,2]
[336039594,1724676661144,-500.0,0.00010997,2]
[336039595,1724676661154,-500.0,0.00010997,2]
[336039596,1724676661163,-500.0,0.00010997,2]
[336039597,1724676661172,-500.0,0.00010997,2]
[336039598,1724676661181,-500.0,0.00010997,2]
[336039599,1724676661191,-500.0,0.00010997,2]
[336039600,1724676661199,-334.76309838,0.00010997,2]
[336039601,1724676661212,-165.23690162,0.00010997,2]
[336039602,1724676661222,-500.0,0.00010997,2]
[336039603,1724676661232,-214.73689758,0.00010997,2]
[336039604,1724676661244,-285.26310242,0.00010997,2]
[336039605,1724676661253,-500.0,0.00010997,2]
[336039606,1724676661263,-50.65194403,0.00010997,2]
[336039607,1724676661279,-449.34805597,0.00010997,2]
[336039608,1724676661288,-500.0,0.00010997,2]
[336039609,1724676661298,-500.0,0.00010997,2]
[336039610,1724676661308,-500.0,0.00010997,2]
[336039611,1724676661317,-183.72756422,0.00010997,2]
[336039612,1724676661329,-316.27243578,0.00010997,2]
[336039613,1724676661339,-500.0,0.00010997,2]
[336039614,1724676661348,-500.0,0.00010997,2]
[336039615,1724676661357,-85.1495752,0.00010997,2]
[336039616,1724676661375,-414.8504248,0.00010997,2]
[336039617,1724676661384,-500.0,0.00010997,2]
[336039618,1724676661394,-500.0,0.00010997,2]
[336039619,1724676661403,-500.0,0.00010997,2]
[336039620,1724676661413,-500.0,0.00010997,2]
[336039621,1724676661422,-500.0,0.00010997,2]
[336039622,1724676661431,-500.0,0.00010997,2]
[336039623,1724676661440,-500.0,0.00010997,2]
[336039624,1724676661449,-500.0,0.00010997,2]
[336039625,1724676661460,-500.0,0.00010997,2]
[336039626,1724676661470,-500.0,0.00010997,2]
[336039627,1724676661480,-500.0,0.00010997,2]
[336039628,1724676661490,-500.0,0.00010997,2]
[336039629,1724676661499,-500.0,0.00010997,2]
[336039630,1724676661510,-581.7,0.00010997,2]
[336039631,1724676661519,-500.0,0.00010997,2]
[336039632,1724676661528,-500.0,0.00010997,2]
[336039633,1724676661537,-581.7,0.00010997,2]
[336039634,1724676661546,-500.0,0.00010997,2]
[336039635,1724676661556,-581.7,0.00010997,2]
[336039636,1724676661565,-500.0,0.00010997,2]
[336039637,1724676661575,-581.7,0.00010997,2]
[336039638,1724676661584,-500.0,0.00010997,2]
[336039639,1724676661594,-581.7,0.00010997,2]
[336039640,1724676661603,-500.0,0.00010997,2]
[336039641,1724676661613,-581.7,0.00010997,2]
[336039642,1724676661623,-500.0,0.00010997,2]
[336039643,1724676661633,-581.7,0.00010997,2]
[336039644,1724676661643,-500.0,0.00010997,2]
[336039645,1724676661653,-581.7,0.00010997,2]
[336039646,1724676661662,-581.7,0.00010997,2]
[336039647,1724676661672,-581.7,0.00010997,2]
[336039648,1724676661681,-590.45381725,0.00010997,2]
[336039649,1724676661845,-581.7,0.00010997,2]
[336039650,1724676661855,-581.7,0.00010997,2]
[336039651,1724676661865,-581.7,0.00010997,2]
[336039652,1724676661876,-500.0,0.00010997,2]
[336039653,1724676661889,-500.0,0.00010997,2]
[336039654,1724676661899,-500.0,0.00010997,2]
[336039655,1724676661910,-500.0,0.00010997,2]
[336039656,1724676661921,-500.0,0.00010997,2]
[336039657,1724676661930,-500.0,0.00010997,2]
[336039658,1724676661940,-500.0,0.00010997,2]
[336039659,1724676661950,-500.0,0.00010997,2]
[336039660,1724676661960,-500.0,0.00010997,2]
[336039661,1724676661974,-500.0,0.00010997,2]
[336039662,1724676661989,-500.0,0.00010997,2]
[336039663,1724676661998,-500.0,0.00010997,2]
[336039664,1724676662008,-500.0,0.00010997,2]
[336039665,1724676662017,-500.0,0.00010997,2]
[336039666,1724676662027,-500.0,0.00010997,2]
[336039667,1724676662037,-500.0,0.00010997,2]
[336039668,1724676662047,-500.0,0.00010997,2]
[336039669,1724676662056,-500.0,0.00010997,2]
[336039670,1724676662066,-500.0,0.00010997,2]
[336039671,1724676662076,-500.0,0.00010997,2]
[336039672,1724676662086,-500.0,0.00010997,2]
[336039673,1724676662095,-500.0,0.00010997,2]
[336039674,1724676662105,-500.0,0.00010997,2]
[336039675,1724676662114,-500.0,0.00010997,2]
[336039676,1724676662124,-500.0,0.00010997,2]
[336039677,1724676662133,-500.0,0.00010997,2]
[336039678,1724676662143,-807.68,0.00010997,2]
[336039679,1724676662152,-807.68,0.00010997,2]
[336039680,1724676662162,-807.68,0.00010997,2]
[336039681,1724676662171,-807.68,0.00010997,2]
[336039682,1724676662181,-807.68,0.00010997,2]
[336039683,1724676662190,-807.68,0.00010997,2]
[336039684,1724676662200,-807.68,0.00010997,2]
[336039685,1724676662209,-807.68,0.00010997,2]
[336039686,1724676662219,-151.0,0.00010997,2]
[336039687,1724676662229,-807.68,0.00010997,2]
[336039688,1724676662241,-500.0,0.00010997,2]
[336039689,1724676662250,-807.68,0.00010997,2]
[336039690,1724676662260,-529.24761736,0.00010997,2]
[336039691,1724676662270,-807.68,0.00010997,2]
[336039692,1724676662280,-807.68,0.00010997,2]
[336039693,1724676662289,-807.68,0.00010997,2]
[336039694,1724676662299,-500.0,0.00010997,2]
[336039695,1724676662309,-500.0,0.00010997,2]
[336039696,1724676662319,-500.0,0.00010997,2]
[336039697,1724676662328,-500.0,0.00010997,2]
[336039698,1724676662338,-500.0,0.00010997,2]
[336039699,1724676662347,-500.0,0.00010997,2]
[336039700,1724676662357,-500.0,0.00010997,2]
[336039701,1724676662366,-500.0,0.00010997,2]
[336039702,1724676662376,-500.0,0.00010997,2]
[336039703,1724676662385,-500.0,0.00010997,2]
[336039704,1724676662395,-93.79191791,0.00010997,2]
[336039705,1724676662423,-406.20808209,0.00010997,2]
[336039706,1724676662432,-500.0,0.00010997,2]
[336039707,1724676662442,-500.0,0.00010997,2]
[336039708,1724676662452,-500.0,0.00010997,2]
[336039709,1724676662462,-284.832181,0.00010997,2]
[336039710,1724676662472,-1664.75,0.00010997,2]
[336039711,1724676662483,-189.7372732,0.00010997,2]
[336039712,1724676662496,-481.61185414,0.00010997,2]
[336039713,1724676662507,-993.40087266,0.00010997,2]
[336039714,1724676662517,-422.04868795,0.00010997,2]
[336039715,1724676662528,-1242.70131205,0.00010997,2]
[336039716,1724676662538,-1664.75,0.00010997,2]
[336039717,1724676662548,-1664.75,0.00010997,2]
[336039718,1724676662557,-450.52060241,0.00010997,2]
[336039719,1724676662569,-618.3903605,0.00010997,2]
[336039720,1724676662580,-585.14483743,0.00010997,2]
[336039721,1724676662592,-10.69419966,0.00010997,2]
[336039722,1724676662601,-1664.75,0.00010997,2]
[336039723,1724676662610,-745.41641989,0.00010997,2]
[336039724,1724676662623,-432.00902886,0.00010997,2]
[336039725,1724676662635,-487.32455125,0.00010997,2]
[336039726,1724676662644,-1664.75,0.00010997,2]
[336039727,1724676662654,-1664.75,0.00010997,2]
[336039728,1724676662663,-500.0,0.00010997,2]
[336039729,1724676662673,-1664.75,0.00010997,2]
[336039730,1724676662682,-500.0,0.00010997,2]
[336039731,1724676662692,-1664.75,0.00010997,2]
[336039732,1724676662701,-500.0,0.00010997,2]
[336039733,1724676662711,-500.0,0.00010997,2]
[336039734,1724676662721,-1664.75,0.00010997,2]
[336039735,1724676662732,-503.92397973,0.00010997,2]
[336039736,1724676662741,-500.0,0.00010997,2]
[336039737,1724676662751,-485.74536975,0.00010997,2]
[336039738,1724676662760,-1229.68,0.00010997,2]
[336039739,1724676662769,-1229.68,0.00010997,2]
[336039740,1724676662779,-1229.68,0.00010997,2]
[336039741,1724676662789,-1199.57777183,0.00010997,2]
[336039742,1724676662803,-30.10222817,0.00010997,2]
[336039743,1724676662812,-843.64489598,0.00010997,2]
[336039744,1724676662829,-320.0730057,0.00010896,2]
[336039745,1724676662838,-173.63130609,0.00010997,2]
[336039746,1724676662850,-212.40379793,0.00010997,2]
[336039747,1724676662859,-100.23620207,0.00010997,2]
[336039748,1724676662870,-550.0,0.00010997,2]
[336039749,1724676662886,-579.44379793,0.00010997,2]
[336039750,1724676662895,-1229.68,0.00010997,2]
[336039751,1724676662905,-1229.68,0.00010997,2]
[336039752,1724676662914,-1229.68,0.00010997,2]
[336039753,1724676662925,-1229.68,0.00010997,2]
[336039754,1724676662934,-1229.68,0.00010997,2]
[336039755,1724676662944,-1229.68,0.00010997,2]
[336039756,1724676662955,-1229.68,0.00010997,2]
[336039757,1724676662965,-500.0,0.00010997,2]
[336039758,1724676662975,-465.72748396,0.00010997,2]
[336039759,1724676662991,-34.27251604,0.00010997,2]
[336039760,1724676663001,-365.72748396,0.00010997,2]
[336039761,1724676663012,-134.27251604,0.00010997,2]
[336039762,1724676663022,-500.0,0.00010997,2]
[336039763,1724676663032,-40.52177969,0.00010997,2]
[336039764,1724676663045,-459.47822031,0.00010997,2]
[336039765,1724676663054,-166.60289476,0.00010997,2]
[336039766,1724676663066,-294.27525239,0.00010997,2]
[336039767,1724676687700,3022.5,9.992e-05,2]
[336039768,1724676691126,430.4,9.992e-05,2]
[336039772,1724676714573,217.21,9.988e-05,2]
[336039773,1724676802484,250.0,9.959e-05,2]
[336039775,1724676926384,640.16,9.945e-05,2]
[336039777,1724676966920,239.9,9.931e-05,2]
[336039778,1724677002502,-615.0,0.00017778,120]
[336039779,1724677002530,-0.58,0.00017778,120]
[336039780,1724677002825,-149.92,0.00017778,120]
[336039781,1724677002855,-465.66,0.00017788,120]
[336039782,1724677003413,-100.71,0.00017788,120]
[336039783,1724677004111,-48.63,0.00017788,120]
[336039784,1724677004138,-150.5,0.00017788,120]
[336039785,1724677004192,-149.92,0.00017788,120]
[336039786,1724677004228,-465.66,0.00017788,120]
[336039787,1724677004317,-149.34,0.00017798,120]
[336039788,1724677004401,-48.63,0.00017798,120]
[336039789,1724677004487,-150.5,0.00017798,120]
[336039790,1724677004527,-74.61,0.00017798,120]
[336039791,1724677011247,1220.77,9.922e-05,2]
[336039792,1724677014935,450.11,8.219e-05,2]
[336039793,1724677037587,-377.5,0.00017778,120]
[336039794,1724677038238,-10.5,0.00017778,120]
[336039795,1724677038271,-52.53,0.00017788,120]
[336039796,1724677038581,-335.47,0.00017788,120]
[336039797,1724677038874,388.0,0.00017788,120]
[336039798,1724677038933,-150.5,0.00017798,120]
[336039799,1724677038943,-237.5,0.00017798,120]
[336039800,1724677039509,-99.55,0.00017798,120]
[336039801,1724677039552,388.0,0.00017778,120]
[336039802,1724677039680,-10.5,0.00017798,120]
[336039803,1724677039720,-40.45,0.00017798,120]
[336039804,1724677039729,-347.55,0.00017798,120]
[336039805,1724677039783,-40.45,0.00017798,120]
[336039806,1724677039793,-295.02,0.00017798,120]
[336039807,1724677039831,-92.98,0.00017798,120]
[336039808,1724677039840,-1.58,0.0001789,120]
[336039809,1724677039881,181.42,0.00017788,120]
[336039810,1724677040155,-150.5,0.00017788,120]
[336039811,1724677054756,-56.08,0.00017788,120]
[336039812,1724677054785,-263.42,0.00017788,120]
[336039813,1724677055072,-126.5,0.00017788,120]
[336039814,1724677055397,-56.08,0.00017798,120]
[336039815,1724677055435,-331.92,0.00017798,120]
[336039816,1724677055444,-58.0,0.0001789,120]
[336039817,1724677055932,-59.58,0.0001789,120]
[336039818,1724677056230,-130.89,0.0001789,120]
[336039819,1724677056257,-150.5,0.00017969,120]
[336039820,1724677056289,-52.22,0.00017979,120]
[336039821,1724677056351,-98.28,0.00017979,120]
[336039822,1724677056361,-28.22,0.00017989,120]
[336039823,1724677056398,-122.28,0.00017989,120]
[336039824,1724677079646,-210.0,0.0001878,120]
[336039825,1724677146990,164.76,9.908e-05,2]
[336039826,1724677274292,655.68,9.912e-05,2]
[336039827,1724677330295,250.0,9.913e-05,2]
[336039828,1724677439075,3316.82,9.88e-05,2]
[336039830,1724677483683,208.08,9.871e-05,2]
[336039832,1724677520999,451.21,8.219e-05,2]
[336039833,1724677546010,171.08,9.915e-05,2]
[336039834,1724677552533,12830.88348594,9.999e-05,2]
[336039835,1724677587153,805.16,9.925e-05,2]
[336039837,1724677642149,332.53,9.901e-05,2]
[336039838,1724677650076,304.92,9.872e-05,2]
[336039858,1724677656795,1852.42,9.873e-05,2]
[336039868,1724677778692,475.45,9.857e-05,2]
[336039903,1724677832059,-189.64036588,0.00010026,2]
[336039904,1724677832069,-400.0,0.000101,3]
[336039905,1724677832079,-219.80793522,0.000101,2]
[336039906,1724677832088,-30.42720442,0.000102,3]
[336039907,1724677832206,-869.57279558,0.000102,3]
[336039908,1724677832216,-1230.42720442,0.000103,3]
[336039909,1724677832227,-169.57279558,0.000103,3]
[336039910,1724677832237,-230.42720442,0.000104,3]
[336039911,1724677832250,-1669.57279558,0.000104,3]
[336039912,1724677832260,-451.21,0.00010471,2]
[336039913,1724677832269,-1517.13067163,0.000105,3]
[336039919,1724677838004,-648.49009307,0.000105,3]
[336039920,1724677838115,-234.3792353,0.000105,3]
[336039921,1724677838124,-300.0,0.00010565,2]
[336039922,1724677838133,-300.0,0.00010565,2]
[336039923,1724677838143,-164.14457792,0.00010566,2]
[336039924,1724677838228,-2000.93198999,0.00010566,2]
[336040017,1724677840138,-400.0,0.000106,3]
[336040019,1724677840148,-1354.2,0.000106,2]
[336040021,1724677840158,-3098.2828,0.00010632,2]
[336040024,1724677840168,-15502.33486992,0.00010699,2]
[336040026,1724677840178,-499.99,0.000107,2]
[336040028,1724677840188,-400.0,0.000107,3]
[336040030,1724677840198,-520.36219453,0.00010713,2]
[336040032,1724677840208,-150.0,0.00010732,2]
[336040034,1724677840218,-150.0,0.00010745,2]
[336040036,1724677840227,-1500.0,0.00010779,2]
[336040038,1724677840237,-150.0,0.00010792,2]
[336040040,1724677840247,-400.0,0.000108,3]
[336040042,1724677840257,-150.0,0.00010825,2]
[336040044,1724677840266,-203.13728804,0.00010861,2]
[336040046,1724677840276,-565.61778372,0.00010862,2]
[336040048,1724677840291,-155.0,0.00010862,2]
[336040049,1724677840300,-155.0,0.00010862,2]
[336040051,1724677840310,-155.0,0.00010862,2]
[336040053,1724677840319,-1500.0,0.00010877,2]
[336040055,1724677840330,-782.83094332,0.00010885,2]
[336040057,1724677840339,-330.72471455,0.00010888,2]
[336040059,1724677840348,-206.09877365,0.00010888,2]
[336040061,1724677840359,-150.0,0.00010888,2]
[336040063,1724677840371,-2583.33333,0.0001089,2]
[336040065,1724677840381,-213.6438,0.00010894,2]
[336040067,1724677840390,-352.80811419,0.00010895,2]
[336040069,1724677840399,-3638.59,0.00010895,2]
[336040071,1724677840409,-1000.0,0.00010895,2]
[336040073,1724677840418,-15677.053,0.00010895,2]
[336040075,1724677840427,-1118.4846,0.00010895,2]
[336040077,1724677840436,-387.0511,0.00010896,2]
[336040078,1724677840445,-578.0781,0.00010896,2]
[336040080,1724677840455,-1263.138,0.00010896,2]
[336040082,1724677840464,-8897.3699,0.00010896,2]
[336040084,1724677840475,-166.39250322,0.00010896,2]
[336040086,1724677840486,-352.80811417,0.00010897,2]
[336040088,1724677840496,-352.80811417,0.00010898,2]
[336040090,1724677840506,-289.0,0.000109,2]
[336040092,1724677840515,-5850.0,0.000109,2]
[336040094,1724677840524,-3729.0,0.000109,2]
[336040096,1724677840534,-13454.0,0.000109,2]
[336040098,1724677840543,-1675.0,0.000109,2]
[336040100,1724677840552,-1203.0,0.000109,2]
[336040102,1724677840561,-400.0,0.000109,3]
[336040104,1724677840571,-12465.6194662,0.000109,3]
[336040106,1724677840580,-352.80811417,0.000109,2]
[336040108,1724677840589,-150.0,0.00010903,2]
[336040110,1724677840598,-500.0,0.00010909,2]
[336040112,1724677840607,-150.0,0.00010945,2]
[336040114,1724677840617,-1500.0,0.00010947,2]
[336040116,1724677840626,-162.945739,0.00010958,2]
[336040118,1724677840635,-171.228464,0.00010958,2]
[336040120,1724677840644,-183.929071,0.00010958,2]
[336040122,1724677840653,-150.18,0.00010959,2]
[336040124,1724677840663,-154.39,0.00010959,2]
[336040126,1724677840672,-250.0,0.00010959,2]
[336040128,1724677840682,-229.36,0.00010959,2]
[336040130,1724677840691,-191.13,0.00010959,2]
[336040132,1724677840701,-159.28,0.00010959,2]
[336040134,1724677840710,-796.4,0.00010959,2]
[336040136,1724677840719,-2463.0,0.00010986,2]
[336040137,1724677840729,-348.4469641,0.00010992,2]
[336040139,1724677840739,-160.05579524,0.00010992,2]
[336040162,1724677840941,-500.0,0.00010993,2]
[336040164,1724677840952,-949.97294688,0.00010993,2]
[336040166,1724677840962,-288.73719006,0.00010993,2]
[336040168,1724677840972,-500.0,0.00010994,2]
[336040170,1724677840984,-3067.07834159,0.00010994,2]
[336040172,1724677840993,-500.0,0.00010994,2]
[336040174,1724677841002,-500.0,0.00010994,2]
[336040176,1724677841011,-2777.44,0.00010994,2]
[336040178,1724677841020,-1879.01,0.00010994,2]
[336040180,1724677841030,-793.87,0.00010994,2]
[336040182,1724677841040,-1749.45,0.00010994,2]
[336040184,1724677841049,-1749.45,0.00010994,2]
[336040186,1724677841059,-1290.25,0.00010994,2]
[336040188,1724677841069,-637.17,0.00010994,2]
[336040190,1724677841079,-500.0,0.00010994,2]
[336040192,1724677841088,-500.0,0.00010994,2]
[336040194,1724677841098,-500.0,0.00010994,2]
[336040196,1724677841107,-555.891425,0.00010994,2]
[336040198,1724677841116,-2669.8,0.00010994,2]
[336040200,1724677841126,-500.0,0.00010994,2]
[336040202,1724677841135,-500.0,0.00010994,2]
[336040204,1724677841146,-500.0,0.00010994,2]
[336040206,1724677841156,-500.0,0.00010994,2]
[336040208,1724677841166,-2173.23,0.00010994,2]
[336040210,1724677841175,-1563.44,0.00010994,2]
[336040212,1724677841185,-1563.44,0.00010994,2]
[336040214,1724677841198,-500.0,0.00010994,2]
[336040216,1724677841207,-341.93859272,0.00010994,2]
[336040218,1724677841217,-1986.91,0.00010994,2]
[336040220,1724677841228,-825.95,0.00010994,2]
[336040222,1724677841238,-825.95,0.00010994,2]
[336040224,1724677841247,-500.0,0.00010994,2]
[336040226,1724677841257,-500.0,0.00010994,2]
[336040228,1724677841266,-1122.97,0.00010994,2]
[336040230,1724677841275,-1122.97,0.00010994,2]
[336040232,1724677841290,-500.0,0.00010994,2]
[336040234,1724677841299,-500.0,0.00010994,2]
[336040236,1724677841308,-500.0,0.00010994,2]
[336040238,1724677841318,-500.0,0.00010994,2]
[336040240,1724677841330,-521.83,0.00010994,2]
[336040242,1724677841339,-521.83,0.00010994,2]
[336040244,1724677841348,-1568.19,0.00010994,2]
[336040246,1724677841358,-1568.19,0.00010994,2]
[336040248,1724677841369,-1554.68,0.00010994,2]
[336040250,1724677841379,-1554.68,0.00010994,2]
[336040252,1724677841388,-651.74,0.00010994,2]
[336040254,1724677841397,-651.74,0.00010994,2]
[336040256,1724677841406,-500.0,0.00010994,2]
[336040258,1724677841415,-500.0,0.00010994,2]
[336040260,1724677841424,-500.0,0.00010994,2]
[336040262,1724677841432,-500.0,0.00010994,2]
[336040264,1724677841441,-549.46,0.00010994,2]
[336040266,1724677841451,-549.46,0.00010994,2]
[336040268,1724677841460,-673.45,0.00010994,2]
[336040270,1724677841469,-500.0,0.00010994,2]
[336040272,1724677841483,-500.0,0.00010994,2]
[336040273,1724677841492,-760.09,0.00010994,2]
[336040275,1724677841501,-760.09,0.00010994,2]
[336040277,1724677841511,-500.0,0.00010994,2]
[336040279,1724677841519,-500.0,0.00010994,2]
[336040281,1724677841528,-816.84,0.00010994,2]
[336040283,1724677841538,-500.0,0.00010994,2]
[336040285,1724677841547,-500.0,0.00010994,2]
[336040287,1724677841556,-500.0,0.00010994,2]
[336040289,1724677841567,-500.0,0.00010994,2]
[336040291,1724677841576,-500.0,0.00010994,2]
[336040293,1724677841586,-500.0,0.00010994,2]
[336040295,1724677841595,-500.0,0.00010994,2]
[336040297,1724677841603,-500.0,0.00010994,2]
[336040299,1724677841612,-500.0,0.00010994,2]
[336040301,1724677841622,-500.0,0.00010994,2]
[336040303,1724677841631,-983.21,0.00010994,2]
[336040305,1724677841641,-983.21,0.00010994,2]